fUSD/lending_fUSD_20260202
["ID","MTS","AMOUNT","RATE_DAILY","PERIOD"]
[404298170,1770045047813,-938.57415772,0.00016393,2]
[404298171,1770045047825,-1600.27286974,0.00016393,2]
[404298172,1770045047847,-905.23441251,0.00016393,2]
[404298173,1770045055536,506.56948123,0.00015,3]
[404298178,1770045126513,238.40840615,0.00011206,2]
[404298179,1770045140735,500.0,0.00011206,2]
[404298180,1770045140973,500.0,0.00011206,2]
[404298181,1770045141025,252.7439837,0.00011206,2]
[404298182,1770045150339,500.0,0.00011206,2]
[404298183,1770045159335,178.64866902,0.00011206,2]
[404298184,1770045168542,500.0,0.00011206,2]
[404298185,1770045168646,500.0,0.00011206,2]
[404298186,1770045168798,544.19441421,0.00011206,2]
[404298187,1770045181424,500.0,0.00011206,2]
[404298188,1770045213417,500.0,0.00011206,2]
[404298189,1770045323770,10000.01,0.00010873,2]
[404298190,1770045323796,10000.01,0.00010873,2]
[404298191,1770045323821,10000.01,0.00010873,2]
[404298192,1770045323847,10000.01,0.00010873,2]
[404298193,1770045323872,10000.01,0.00010873,2]
[404298194,1770045323898,10000.01,0.00010873,2]
[404298195,1770045323930,10000.01,0.00010873,2]
[404298196,1770045323957,10000.01,0.00010873,2]
[404298197,1770045323984,10000.01,0.00010873,2]
[404298198,1770045324009,10000.01,0.00010873,2]
[404298199,1770045324601,-1073.24458984,0.00010873,2]
[404298200,1770045332361,-235.0,0.00010873,2]
[404298201,1770045333643,-4261.60159385,0.00010873,2]
[404298202,1770045333862,-5000.01,0.00010873,2]
[404298203,1770045333992,-5000.01,0.00010873,2]
[404298204,1770045336214,-174.56232373,0.00010873,2]
[404298205,1770045338582,-573.71642087,0.00010873,2]
[404298206,1770045339568,-5000.01,0.00010873,2]
[404298207,1770045339717,-5000.01,0.00010873,2]
[404298208,1770045339900,-5000.01,0.00010873,2]
[404298209,1770045343857,-479.124145,0.00010873,2]
[404298210,1770045355116,-810.04092671,0.00010873,2]
[404298213,1770045491361,-500.0,0.00011665,2]
[404298214,1770045772465,-351.160071,0.00011565,2]
[404298215,1770045787357,-245.0,0.00011665,2]
[404298216,1770045787386,-174.66687349,0.00011665,2]
[404298217,1770045802916,-250.0,0.00011689,2]
[404298218,1770045817535,-300.0,0.00011712,2]
[404298220,1770045832630,-250.0,0.00011745,2]
[404298221,1770045847696,-1516.0,0.00011759,2]
[404298253,1770046059008,171.04,0.00011376,2]
[404298425,1770046232021,-250.0,0.00012282,2]
[404298427,1770046232031,-251.0,0.00012282,2]
[404298429,1770046232043,-253.66632813,0.00012793,2]
[404298432,1770046232126,-292.12642887,0.00012793,2]
[404298433,1770046232136,-300.0,0.00012948,2]
[404298434,1770046232146,-250.0,0.00012948,2]
[404298440,1770046232389,-90.19262235,0.00012948,2]
[404298443,1770046232413,-159.80737765,0.00012948,2]
[404298445,1770046232423,-241.19262234,0.00013347,2]
[404298448,1770046232434,-405.05,0.00013347,2]
[404298450,1770046232445,-553.75737766,0.00013347,2]
[404298452,1770046232455,-1173.64624593,0.00013348,2]
[404298454,1770046232467,-221.17333876,0.00013348,2]
[404298456,1770046232477,-3680.95095219,0.00013348,2]
[404298458,1770046232488,-4908.44700278,0.00013348,2]
[404298462,1770046232514,-1585.18679394,0.00013348,2]
[404298464,1770046232524,-300.0,0.0001351,2]
[404298466,1770046232533,-166.66,0.00013692,2]
[404298468,1770046232545,-1244.35388049,0.00013848,2]
[404298576,1770046238169,-615.21547425,0.00013848,2]
[404298577,1770046238352,-1095.2183,0.00013848,2]
[404298578,1770046238377,-379.82759067,0.00013848,2]
[404298579,1770046238402,-3149.61201621,0.00013848,2]
[404298607,1770046240340,-3229.86053955,0.00013848,2]
[404298609,1770046240350,-500.0,0.00013973,2]
[404298610,1770046240360,-9999.99,0.00013973,2]
[404298611,1770046240368,-348.93,0.00013973,2]
[404298612,1770046240378,-166.66,0.0001398,2]
[404298613,1770046240388,-7764.82,0.00014073,2]
[404298614,1770046240398,-195.0,0.00014183,2]
[404298615,1770046240408,-171.04,0.0001422,2]
[404298616,1770046240417,-166.66,0.00014268,2]
[404298617,1770046240427,-746.0,0.00014315,2]
[404298618,1770046240439,-13143.4974,0.00014348,2]
[404298619,1770046240448,-10331.11610173,0.0001439,2]
[404298620,1770046240457,-1615.0,0.00014439,2]
[404298621,1770046240466,-1000.0,0.00014521,2]
[404298622,1770046240475,-999.99,0.00014521,2]
[404298623,1770046240484,-9999.99,0.00014521,2]
[404298624,1770046240493,-150.99,0.00014521,2]
[404298625,1770046240503,-166.66,0.00014557,2]
[404298626,1770046240512,-1680.0,0.00014682,2]
[404298627,1770046240522,-166.66,0.00014845,2]
[404298628,1770046240531,-250.0,0.00015,2]
[404298629,1770046240541,-500.0,0.00015022,2]
[404298630,1770046240553,-500.0,0.00015022,2]
[404298631,1770046240606,-150.0,0.00015022,2]
[404298632,1770046240616,-500.0,0.00015022,2]
[404298633,1770046240625,-5617.0,0.00015022,2]
[404298634,1770046240634,-150.0,0.00015022,2]
[404298635,1770046240643,-500.0,0.00015022,2]
[404298636,1770046240652,-150.0,0.00015022,2]
[404298637,1770046240661,-150.0,0.00015022,2]
[404298638,1770046240671,-150.0,0.00015022,2]
[404298639,1770046240680,-500.0,0.00015022,2]
[404298640,1770046240690,-150.0,0.00015022,2]
[404298641,1770046240699,-500.0,0.00015022,2]
[404298642,1770046240709,-500.0,0.00015022,2]
[404298643,1770046240718,-165.35985631,0.00015068,2]
[404298644,1770046240728,-343.53,0.00015068,2]
[404298645,1770046240737,-299.99,0.00015068,2]
[404298646,1770046240747,-500.0,0.00015077,2]
[404298647,1770046240756,-500.0,0.00015077,2]
[404298648,1770046240765,-626.74400397,0.00015077,2]
[404298649,1770046240775,-5617.0,0.00015077,2]
[404298650,1770046240784,-500.0,0.00015077,2]
[404298651,1770046240794,-150.0,0.00015077,2]
[404298652,1770046240803,-150.0,0.00015077,2]
[404298653,1770046240813,-500.0,0.00015077,2]
[404298654,1770046240825,-500.0,0.00015077,2]
[404298655,1770046240834,-500.0,0.00015077,2]
[404298656,1770046240843,-500.0,0.00015132,2]
[404298657,1770046240852,-203.40923612,0.00015132,2]
[404298658,1770046240863,-5617.0,0.00015132,2]
[404298659,1770046240872,-354.76107445,0.00015132,2]
[404298661,1770046240881,-150.0,0.00015132,2]
[404298662,1770046240891,-150.0,0.00015132,2]
[404298664,1770046240901,-500.0,0.00015132,2]
[404298666,1770046240910,-500.0,0.00015132,2]
[404298668,1770046240919,-500.0,0.00015132,2]
[404298669,1770046240928,-166.66,0.00015133,2]
[404298671,1770046240939,-500.0,0.00015186,2]
[404298673,1770046240949,-5617.0,0.00015186,2]
[404298675,1770046240958,-500.0,0.00015186,2]
[404298676,1770046240967,-150.0,0.00015186,2]
[404298678,1770046240977,-500.0,0.00015186,2]
[404298679,1770046240986,-500.0,0.00015186,2]
[404298680,1770046240996,-687.7722,0.00015198,2]
[404298681,1770046241006,-6951.03118837,0.00015207,2]
[404298682,1770046241015,-156.27581708,0.00015207,2]
[404298683,1770046241025,-200.0,0.00015229,2]
[404298684,1770046241034,-250.52896875,0.00015234,2]
[404298685,1770046241044,-500.0,0.00015234,2]
[404298686,1770046241053,-150.0,0.00015234,2]
[404298687,1770046241063,-500.0,0.00015234,2]
[404298688,1770046241072,-150.0,0.00015234,2]
[404298689,1770046241081,-500.0,0.00015234,2]
[404298690,1770046241090,-500.0,0.00015234,2]
[404298691,1770046241099,-46638.69,0.00015239,2]
[404298692,1770046241109,-500.0,0.00015241,2]
[404298693,1770046241117,-5617.0,0.00015241,2]
[404298694,1770046241126,-500.0,0.00015241,2]
[404298695,1770046241134,-156.44868677,0.00015241,2]
[404298696,1770046241144,-500.0,0.00015241,2]
[404298697,1770046241152,-500.0,0.00015241,2]
[404298698,1770046241161,-1013.85,0.00015242,2]
[404298699,1770046241170,-219.99535799,0.00015244,2]
[404298700,1770046241179,-816.5738703,0.00015244,2]
[404298701,1770046241189,-1913.88588043,0.00015244,2]
[404298702,1770046241198,-385.64740788,0.00015244,2]
[404298703,1770046241207,-751.57,0.00015288,2]
[404298704,1770046241216,-751.57,0.00015288,2]
[404298705,1770046241225,-751.57,0.00015288,2]
[404298706,1770046241234,-751.57,0.00015288,2]
[404298707,1770046241242,-751.57,0.00015288,2]
[404298708,1770046241252,-165.21031004,0.00015288,2]
[404298709,1770046241262,-151.0,0.00015288,2]
[404298710,1770046241271,-151.0,0.00015288,2]
[404298711,1770046241280,-151.0,0.00015288,2]
[404298712,1770046241289,-151.0,0.00015288,2]
[404298713,1770046241300,-151.0,0.00015288,2]
[404298714,1770046241308,-151.0,0.00015288,2]
[404298715,1770046241317,-151.0,0.00015288,2]
[404298716,1770046241327,-151.0,0.00015288,2]
[404298717,1770046241336,-151.0,0.00015288,2]
[404298718,1770046241345,-151.0,0.00015288,2]
[404298719,1770046241354,-151.0,0.00015288,2]
[404298720,1770046241363,-151.0,0.00015288,2]
[404298721,1770046241372,-151.0,0.00015288,2]
[404298722,1770046241380,-151.0,0.00015288,2]
[404298723,1770046241389,-151.0,0.00015288,2]
[404298724,1770046241399,-151.0,0.00015288,2]
[404298725,1770046241408,-500.0,0.00015288,2]
[404298726,1770046241417,-151.0,0.00015288,2]
[404298727,1770046241426,-151.0,0.00015288,2]
[404298728,1770046241434,-500.0,0.00015288,2]
[404298729,1770046241443,-151.0,0.00015288,2]
[404298730,1770046241452,-151.0,0.00015288,2]
[404298731,1770046241461,-500.0,0.00015288,2]
[404298732,1770046241470,-151.0,0.00015288,2]
[404298733,1770046241479,-151.0,0.00015288,2]
[404298734,1770046241488,-151.0,0.00015288,2]
[404298735,1770046241498,-500.0,0.00015288,2]
[404298736,1770046241507,-151.0,0.00015288,2]
[404298737,1770046241518,-151.0,0.00015288,2]
[404298738,1770046241527,-500.0,0.00015288,2]
[404298739,1770046241536,-151.0,0.00015288,2]
[404298740,1770046241546,-500.0,0.00015288,2]
[404298741,1770046241555,-151.0,0.00015288,2]
[404298742,1770046241564,-500.0,0.00015288,2]
[404298743,1770046241573,-151.0,0.00015288,2]
[404298744,1770046241582,-500.0,0.00015288,2]
[404298745,1770046241591,-151.0,0.00015288,2]
[404298746,1770046241600,-500.0,0.00015288,2]
[404298747,1770046241610,-151.0,0.00015288,2]
[404298748,1770046241619,-500.0,0.00015288,2]
[404298749,1770046241628,-500.0,0.00015288,2]
[404298750,1770046241637,-151.0,0.00015288,2]
[404298751,1770046241646,-500.0,0.00015288,2]
[404298752,1770046241654,-500.0,0.00015288,2]
[404298753,1770046241663,-500.0,0.00015288,2]
[404298754,1770046241672,-500.0,0.00015288,2]
[404298755,1770046241681,-500.0,0.00015288,2]
[404298756,1770046241690,-500.0,0.00015288,2]
[404298757,1770046241699,-500.0,0.00015288,2]
[404298758,1770046241707,-500.0,0.00015288,2]
[404298759,1770046241717,-500.0,0.00015288,2]
[404298760,1770046241726,-500.0,0.00015288,2]
[404298761,1770046241737,-500.0,0.00015288,2]
[404298762,1770046241746,-500.0,0.00015289,2]
[404298763,1770046241755,-150.0,0.00015289,2]
[404298764,1770046241764,-500.0,0.00015289,2]
[404298765,1770046241773,-266.13840863,0.00015289,2]
[404298766,1770046241783,-500.0,0.00015289,2]
[404298767,1770046241793,-500.0,0.00015289,2]
[404298768,1770046241803,-151.0,0.00015295,2]
[404298769,1770046241813,-151.0,0.00015295,2]
[404298770,1770046241825,-500.0,0.00015296,2]
[404298771,1770046241834,-5617.0,0.00015296,2]
[404298772,1770046241843,-500.0,0.00015296,2]
[404298773,1770046241855,-416.97590661,0.00015296,2]
[404298774,1770046241865,-500.0,0.00015296,2]
[404298775,1770046241874,-500.0,0.00015297,2]
[404298776,1770046241883,-166.8858843,0.00015297,2]
[404298777,1770046241893,-189.34591686,0.00015297,2]
[404298778,1770046241903,-500.0,0.00015297,2]
[404298779,1770046241912,-500.0,0.00015297,2]
[404298780,1770046241922,-500.0,0.00015297,2]
[404298781,1770046241933,-500.0,0.00015297,2]
[404298782,1770046241942,-500.0,0.00015297,2]
[404298783,1770046241951,-500.0,0.00015297,2]
[404298784,1770046241963,-500.0,0.00015297,2]
[404298785,1770046241972,-500.0,0.00015297,2]
[404298786,1770046241981,-500.0,0.00015297,2]
[404298787,1770046241991,-395.34710478,0.00015297,2]
[404298788,1770046242000,-500.0,0.00015297,2]
[404298789,1770046242009,-500.0,0.00015297,2]
[404298790,1770046242019,-500.0,0.00015297,2]
[404298791,1770046242029,-500.0,0.00015297,2]
[404298792,1770046242038,-500.0,0.00015297,2]
[404298793,1770046242049,-500.0,0.00015297,2]
[404298794,1770046242058,-500.0,0.00015297,2]
[404298795,1770046242067,-500.0,0.00015297,2]
[404298796,1770046242076,-500.0,0.00015297,2]
[404298797,1770046242085,-500.0,0.00015297,2]
[404298798,1770046242095,-500.0,0.00015297,2]
[404298799,1770046242104,-3500000.0,0.00015298,2]
[404298800,1770046242114,-150.0,0.00015344,2]
[404298801,1770046242123,-500.0,0.00015344,2]
[404298802,1770046242133,-500.0,0.00015344,2]
[404298803,1770046242142,-500.0,0.00015344,2]
[404298804,1770046242151,-500.0,0.00015344,2]
[404298805,1770046242160,-500.0,0.00015351,2]
[404298806,1770046242169,-5617.0,0.00015351,2]
[404298807,1770046242178,-500.0,0.00015351,2]
[404298808,1770046242188,-5230.06,0.00015398,2]
[404298809,1770046242197,-282.97813088,0.00015398,2]
[404298810,1770046242206,-500.0,0.00015398,2]
[404298811,1770046242215,-500.0,0.00015398,2]
[404298812,1770046242224,-206.36581695,0.00015398,2]
[404298813,1770046242234,-500.0,0.00015398,2]
[404298814,1770046242243,-500.0,0.00015406,2]
[404298815,1770046242252,-5617.0,0.00015406,2]
[404298816,1770046242261,-500.0,0.00015406,2]
[404298817,1770046242270,-3009.87,0.00015428,2]
[404298818,1770046242279,-500.0,0.00015453,2]
[404298819,1770046242288,-500.0,0.00015453,2]
[404298820,1770046242299,-500.0,0.00015453,2]
[404298821,1770046242308,-500.0,0.0001546,2]
[404298822,1770046242317,-5617.0,0.0001546,2]
[404298823,1770046242327,-500.0,0.0001546,2]
[404298824,1770046242336,-263.57582064,0.00015473,2]
[404298825,1770046242345,-500.0,0.00015473,2]
[404298826,1770046242354,-269.8904873,0.00015473,2]
[404298827,1770046242363,-500.0,0.00015473,2]
[404298828,1770046242371,-500.0,0.00015473,2]
[404298829,1770046242380,-500.0,0.00015473,2]
[404298830,1770046242389,-500.0,0.00015473,2]
[404298831,1770046242397,-500.0,0.00015473,2]
[404298832,1770046242407,-500.0,0.00015473,2]
[404298833,1770046242415,-500.0,0.00015473,2]
[404298834,1770046242424,-500.0,0.00015473,2]
[404298835,1770046242433,-582.33207666,0.00015473,2]
[404298836,1770046242442,-500.0,0.00015473,2]
[404298837,1770046242450,-503.32803614,0.00015473,2]
[404298838,1770046242460,-500.0,0.00015473,2]
[404298839,1770046242469,-500.0,0.00015473,2]
[404298840,1770046242478,-500.0,0.00015473,2]
[404298841,1770046242487,-500.0,0.00015473,2]
[404298842,1770046242495,-500.0,0.00015473,2]
[404298843,1770046242505,-500.0,0.00015473,2]
[404298844,1770046242513,-500.0,0.00015473,2]
[404298845,1770046242523,-500.0,0.00015473,2]
[404298846,1770046242532,-500.0,0.00015473,2]
[404298847,1770046242541,-500.0,0.00015473,2]
[404298848,1770046242552,-565.00011393,0.00015473,2]
[404298849,1770046242561,-500.0,0.00015473,2]
[404298850,1770046242571,-500.0,0.00015473,2]
[404298851,1770046242580,-500.0,0.00015473,2]
[404298852,1770046242590,-500.0,0.00015473,2]
[404298853,1770046242599,-500.0,0.00015473,2]
[404298854,1770046242608,-500.0,0.00015473,2]
[404298855,1770046242617,-500.0,0.00015473,2]
[404298856,1770046242626,-500.0,0.00015473,2]
[404298857,1770046242636,-500.0,0.00015473,2]
[404298858,1770046242645,-500.0,0.00015473,2]
[404298859,1770046242654,-500.0,0.00015473,2]
[404298860,1770046242663,-6951.0311883,0.00015506,2]
[404298861,1770046242673,-500.0,0.00015508,2]
[404298862,1770046242682,-500.0,0.00015515,2]
[404298863,1770046242691,-5617.0,0.00015515,2]
[404298864,1770046242700,-527.83357046,0.00015515,2]
[404298865,1770046242709,-1913.88588039,0.0001553,2]
[404298866,1770046242718,-500.0,0.00015563,2]
[404298867,1770046242727,-500.0,0.0001557,2]
[404298868,1770046242737,-5617.0,0.0001557,2]
[404298869,1770046242746,-500.0,0.00015625,2]
[404298870,1770046242755,-5617.0,0.00015625,2]
[404298871,1770046242764,-159.65843549,0.00015638,2]
[404298872,1770046242774,-500.0,0.0001568,2]
[404298873,1770046242783,-5617.0,0.0001568,2]
[404298874,1770046242794,-150.0,0.00015734,2]
[404298875,1770046242804,-5617.0,0.00015734,2]
[404298876,1770046242815,-150.0,0.00015747,2]
[404298877,1770046242826,-500.0,0.00015753,2]
[404298878,1770046242836,-5617.0,0.00015789,2]
[404298879,1770046242845,-166.03286464,0.00015802,2]
[404298880,1770046242855,-6951.0311883,0.00015805,2]
[404298881,1770046242865,-1913.88588039,0.00015816,2]
[404298882,1770046242874,-5617.0,0.00015844,2]
[404298883,1770046242883,-156.27581707,0.0001588,2]
[404298884,1770046242893,-5617.0,0.00015899,2]
[404298885,1770046242903,-1000.0,0.00015918,2]
[404298886,1770046242913,-5617.0,0.00015954,2]
[404298887,1770046242922,-151.0,0.00015997,2]
[404298888,1770046242933,-956.83032625,0.00016,2]
[404298889,1770046242942,-270.91542523,0.00016,2]
[404298890,1770046242953,-421.15115649,0.00016,2]
[404298891,1770046242962,-73994.14576318,0.00016,4]
[404298892,1770046242971,-200.0,0.00016,2]
[404298893,1770046242981,-535.02102403,0.00016003,2]
[404298894,1770046242991,-5617.0,0.00016008,2]
[404298896,1770046243000,-501.43163729,0.00016021,2]
[404298897,1770046243009,-1000.0,0.00016021,2]
[404298898,1770046243019,-487.41342802,0.00016021,2]
[404298899,1770046243028,-503.70343212,0.00016021,2]
[404298900,1770046243038,-1001.04497332,0.00016021,2]
[404298901,1770046243049,-500.0,0.00016021,2]
[404298902,1770046243058,-536.85123149,0.00016021,2]
[404298903,1770046243067,-1001.51663727,0.00016021,2]
[404298904,1770046243082,-1000.0,0.00016021,2]
[404298905,1770046243091,-1000.0,0.00016021,2]
[404298906,1770046243101,-1000.0,0.00016021,2]
[404298907,1770046243111,-1000.0,0.00016021,2]
[404298908,1770046243120,-385.68955508,0.00016021,2]
[404298909,1770046243129,-1000.0,0.00016021,2]
[404298910,1770046243138,-287.5401961,0.00016021,2]
[404298911,1770046243148,-1000.0,0.00016021,2]
[404298912,1770046243157,-1000.0,0.00016021,2]
[404298913,1770046243166,-500.0,0.00016021,2]
[404298914,1770046243176,-1000.0,0.00016021,2]
[404298915,1770046243185,-1000.0,0.00016021,2]
[404298916,1770046243195,-500.40903786,0.00016021,2]
[404298917,1770046243205,-194.71422031,0.00016021,2]
[404298918,1770046243214,-908.63714551,0.00016021,2]
[404298919,1770046243224,-1000.0,0.00016021,2]
[404298920,1770046243234,-371.34493106,0.00016021,2]
[404298921,1770046243243,-1000.0,0.00016021,2]
[404298922,1770046243253,-1000.0,0.00016021,2]
[404298923,1770046243263,-1000.0,0.00016021,2]
[404298924,1770046243272,-5617.0,0.00016063,2]
[404298925,1770046243281,-1913.88588039,0.00016102,2]
[404298926,1770046243290,-6951.0311883,0.00016105,2]
[404298927,1770046243305,-5617.0,0.00016118,2]
[404298928,1770046243314,-2351.0,0.0001615,2]
[404298929,1770046243323,-5617.0,0.00016173,2]
[404298930,1770046243333,-5000.00619755,0.000162,5]
[404298931,1770046243342,-5617.0,0.00016227,2]
[404298932,1770046243351,-250.0,0.00016228,2]
[404298933,1770046243360,-159.65843549,0.00016239,2]
[404298934,1770046243370,-297.6689898,0.00016241,2]
[404298935,1770046243379,-339.85293807,0.00016241,2]
[404298936,1770046243388,-322.6107,0.00016273,2]
[404298937,1770046243397,-174.61919141,0.00016273,2]
[404298938,1770046243407,-500.0,0.00016273,2]
[404298939,1770046243416,-209.40437684,0.00016273,2]
[404298940,1770046243426,-500.0,0.00016273,2]
[404298941,1770046243435,-500.0,0.00016273,2]
[404298942,1770046243444,-500.0,0.00016273,2]
[404298943,1770046243453,-500.0,0.00016273,2]
[404298944,1770046243463,-250.0,0.00016273,2]
[404298945,1770046243472,-500.0,0.00016273,2]
[404298946,1770046243481,-250.0,0.00016273,2]
[404298947,1770046243491,-500.0,0.00016273,2]
[404298948,1770046243500,-250.0,0.00016273,2]
[404298949,1770046243509,-500.0,0.00016273,2]
[404298950,1770046243520,-250.0,0.00016273,2]
[404298951,1770046243531,-500.0,0.00016273,2]
[404298952,1770046243541,-250.0,0.00016273,2]
[404298953,1770046243557,-236.12661084,0.00016273,2]
[404298954,1770046243573,-262.899,0.00016273,2]
[404298955,1770046243619,-0.97438916,0.00016273,2]
[404298956,1770046243628,-250.0,0.00016273,2]
[404298957,1770046243638,-0.84456944,0.00016273,2]
[404298958,1770046243650,-458.87313864,0.00016273,2]
[404298959,1770046243661,-40.28229192,0.00016273,2]
[404298960,1770046243670,-215.03642783,0.00016273,2]
[404298961,1770046243681,-34.96357217,0.00016273,2]
[404298962,1770046243691,-250.0,0.00016273,2]
[404298963,1770046243700,-250.0,0.00016273,2]
[404298964,1770046243709,-152.80854762,0.00016273,2]
[404298965,1770046243721,-13.39345849,0.00016273,2]
[404298966,1770046243731,-578.20924308,0.00016273,2]
[404298967,1770046243740,-721.12765535,0.00016273,2]
[404298968,1770046243750,-250.0,0.00016273,2]
[404298969,1770046243760,-1428.38747117,0.00016273,2]
[404298970,1770046243770,-317.3738203,0.00016273,2]
[404298971,1770046243779,-209.40437684,0.00016273,2]
[404298972,1770046243788,-209.40437684,0.00016273,2]
[404298973,1770046243801,-859.80605061,0.00016273,2]
[404298974,1770046243811,-250.0,0.00016273,2]
[404298975,1770046243821,-250.0,0.00016273,2]
[404298976,1770046243834,-249.0234262,0.00016273,2]
[404298977,1770046243844,-250.0,0.00016273,2]
[404298978,1770046243855,-250.0,0.00016273,2]
[404298979,1770046243865,-250.0,0.00016273,2]
[404298980,1770046243874,-250.0,0.00016273,2]
[404298981,1770046243884,-90.86868091,0.00016273,2]
[404298982,1770046243900,-159.13131909,0.00016273,2]
[404298983,1770046243910,-217.15233878,0.00016328,2]
[404298984,1770046243919,-500.0,0.00016356,2]
[404298985,1770046243929,-535.02102403,0.00016382,2]
[404298986,1770046243939,-225.18697532,0.00016383,2]
[404298987,1770046243948,-1913.88588039,0.00016388,2]
[404298988,1770046243957,-2835.0,0.000164,2]
[404298989,1770046243967,-6951.0311883,0.00016404,2]
[404298990,1770046243976,-233.51889341,0.00016438,2]
[404298991,1770046243986,-500.0,0.00016438,2]
[404298992,1770046243995,-500.0,0.00016438,2]
[404298993,1770046244004,-500.0,0.00016438,2]
[404298994,1770046244013,-500.0,0.00016438,2]
[404298995,1770046244022,-500.0,0.00016438,2]
[404298996,1770046244032,-500.0,0.00016438,2]
[404298997,1770046244041,-500.0,0.00016438,2]
[404298998,1770046244054,-500.0,0.00016438,2]
[404298999,1770046244063,-500.0,0.00016438,2]
[404299000,1770046244072,-500.0,0.00016438,2]
[404299001,1770046244081,-500.0,0.00016438,2]
[404299002,1770046244090,-500.0,0.00016438,2]
[404299003,1770046244099,-626.13448953,0.00016438,2]
[404299004,1770046244108,-500.0,0.00016438,2]
[404299005,1770046244117,-500.0,0.00016438,2]
[404299006,1770046244126,-500.0,0.00016438,2]
[404299007,1770046244135,-500.0,0.00016438,2]
[404299008,1770046244145,-500.0,0.00016438,2]
[404299009,1770046244154,-500.0,0.00016438,2]
[404299010,1770046244164,-500.0,0.00016438,2]
[404299011,1770046244174,-500.0,0.00016438,2]
[404299014,1770046244183,-500.0,0.00016438,2]
[404299016,1770046244192,-500.0,0.00016438,2]
[404299017,1770046244202,-500.0,0.00016438,2]
[404299019,1770046244212,-500.0,0.00016438,2]
[404299021,1770046244221,-500.0,0.00016438,2]
[404299024,1770046244231,-500.0,0.00016438,2]
[404299025,1770046244241,-500.0,0.00016438,2]
[404299027,1770046244250,-500.0,0.00016438,2]
[404299029,1770046244259,-500.0,0.00016438,2]
[404299031,1770046244269,-500.0,0.00016438,2]
[404299032,1770046244278,-500.0,0.00016438,2]
[404299033,1770046244287,-500.0,0.00016438,2]
[404299034,1770046244298,-500.0,0.00016438,2]
[404299035,1770046244307,-500.0,0.00016438,2]
[404299036,1770046244316,-500.0,0.00016438,2]
[404299037,1770046244325,-500.0,0.00016438,2]
[404299038,1770046244334,-500.0,0.00016438,2]
[404299040,1770046244343,-500.0,0.00016438,2]
[404299042,1770046244352,-500.0,0.00016438,2]
[404299044,1770046244361,-500.0,0.00016438,2]
[404299046,1770046244370,-500.0,0.00016438,2]
[404299047,1770046244379,-500.0,0.00016438,2]
[404299048,1770046244389,-500.0,0.00016438,2]
[404299049,1770046244397,-500.0,0.00016438,2]
[404299050,1770046244407,-500.0,0.00016438,2]
[404299051,1770046244416,-500.0,0.00016438,2]
[404299052,1770046244425,-500.0,0.00016438,2]
[404299053,1770046244434,-500.0,0.00016438,2]
[404299054,1770046244443,-500.0,0.00016438,2]
[404299055,1770046244453,-500.0,0.00016438,2]
[404299056,1770046244462,-500.0,0.00016438,2]
[404299057,1770046244471,-500.0,0.00016438,2]
[404299058,1770046244480,-500.0,0.00016438,2]
[404299059,1770046244490,-599.99999999,0.00016438,2]
[404299060,1770046244499,-500.0,0.00016438,2]
[404299061,1770046244508,-500.0,0.00016438,2]